Cogmind - Beta 13 @@@ ROGUE MODE // 2024.05.13 @ 15:52:26 Player: ToasterKoishi Result: Destroyed by Autobeam Turret with Autobeam Performance ------------- Evolutions (0) 0 Regions Visited (3) 600 Robots Destroyed (23) 115 Value Destroyed (566) 566 Prototype IDs (2) 40 Alien Tech Used (0) 0 Bonus (7) 7 TOTAL SCORE: 1328 Bonus ------- Follower Combat Kills 7 Cogmind --------- Core Integrity 0/250 Matter 300/300 Energy 100/100 System Corruption 1% Temperature Cool (6) Movement Rolling (110) Ox2 Location -10/Subcaves Parts ------- > --- POWER (1) -------- (None) > --- PROPULSION (2) --- Light Treads Wheel > --- UTILITY (2) ------ Large Storage Unit > --- WEAPON (2) ------- Beam Cannon Battle Cannon > --- INVENTORY (15) --- Light Treads Light Treads Light Treads Light Treads Light Treads Light Treads Wheel Subdweller Monowheel Large Storage Unit High-capacity Matter Pod (200) Improved Terrain Scanner Hacking Suite Subdweller Laser Subdweller Machine Gun Light Cannon Peak State ------------ > --- POWER ------------ Ion Engine > --- PROPULSION ------- Light Treads Wheel > --- UTILITY ---------- Large Storage Unit Seismic Detector > --- WEAPON ----------- Beam Cannon Battle Cannon > --- INVENTORY -------- Light Treads Light Treads Light Treads Light Treads Light Treads Light Treads Wheel Wheel Large Storage Unit High-capacity Matter Pod Improved Terrain Scanner Hacking Suite Particle Gun Particle Gun Light Cannon [Rating: 10] Favorites ----------- Power Ion Engine Engine Ion Engine Propulsion Wheel Treads Light Treads Wheel Wheel Utility Seismic Detector Device Seismic Detector Storage Large Storage Unit Weapon Beam Cannon Energy Gun Medium Laser Energy Cannon Beam Cannon Ballistic Cannon Light Cannon Build | -11 -10 -10 -10 ------- Run | Yrd Mat Min Sub Slots Evolved . | . . . . Power . | . . . . Propulsion . | . . . . Utility . | . . . . Weapon . | . . . . Parts Attached 15 | 7 7 . 1 Power 2 | 1 1 . . Engine 2 | 1 1 . . Core . | . . . . Reactor . | . . . . Propulsion 4 | 2 2 . . Treads 2 | 1 1 . . Leg . | . . . . Wheel 2 | 1 1 . . Hover . | . . . . Flight . | . . . . Utility 4 | 2 2 . . Device 1 | 1 . . . Storage 3 | 1 2 . . Processor . | . . . . Hackware . | . . . . Protection . | . . . . Artifact . | . . . . Weapon 5 | 2 2 . 1 Energy Gun 2 | 2 . . . Energy Cannon 1 | . 1 . . Ballistic Gun . | . . . . Ballistic Cannon 2 | . 1 . 1 Launcher . | . . . . Special Weapon . | . . . . Impact Weapon . | . . . . Slashing Weapon . | . . . . Piercing Weapon . | . . . . Special Melee Weapon . | . . . . Unidentified Prototypes . | . . . . Parts Lost 2 | . 1 . 1 Power . | . . . . Propulsion 1 | . 1 . . Utility 1 | . . . 1 Weapon . | . . . . Highest Loss Streak 1 | . 1 . 1 To Critical Strikes . | . . . . Average Slot Usage (%) 99 | . 100 100 91 Engine 13 | . 14 14 7 Treads 14 | . 14 14 14 Wheel 14 | . 14 14 14 Device 13 | . 14 14 11 Storage 14 | . 14 14 14 Energy Gun 2 | . 4 . . Energy Cannon 12 | . 12 14 14 Ballistic Cannon 12 | . 11 14 14 Naked Turns . | . . . . Heaviest Build 32 | 14 32 32 32 Greatest Support 20 | 20 20 10 10 Greatest Overweight (x) 3 | 1 3 3 3 Average Overweight (x) 2 | . 2 3 2 Largest Inventory Capacity 15 | 8 15 15 15 Average Capacity 14 | 7 14 15 15 Most Carried 15 | 4 15 15 15 Average Carried 14 | 1 14 14 14 Final Capacity 15 | 8 15 15 15 Final Carried 15 | 4 15 15 15 Class Distribution -------------------- 100% | Mutant Dominant Class ---------------- Mutant | -10/Materials Mutant | -10/Mines Mutant | -10/Subcaves Resources | -11 -10 -10 -10 ----------- Run | Yrd Mat Min Sub Matter Collected 976 | 216 730 10 20 Remotely . | . . . . Salvage Created 612 | 11 546 21 34 Parts 53 | 4 47 2 . Haulers Intercepted . | . . . . Recyclers Shooed . | . . . . Parts Field Recycled . | . . . . Retrieved Matter . | . . . . Parts Self-Destructed 5 | . . . 5 Prevented . | . . . . Kills | -11 -10 -10 -10 ------- Run | Yrd Mat Min Sub Combat Hostiles Destroyed 16 | . 15 . 1 Guns 2 | . 2 . . Cannons 14 | . 13 . 1 Classes Destroyed 8 | 1 6 . 1 Worker 2 | . 1 1 . Builder 1 | . 1 . . Tunneler 1 | 1 . . . Operator 2 | . 2 . . Watcher 1 | . 1 . . Swarmer 3 | . 3 . . Grunt 12 | . 12 . . Subdweller 1 | . . . 1 Best Kill Streak 4 | 1 4 1 1 Combat Bots Only 4 | . 4 . 1 Max Kills in Single Turn 1 | 1 1 1 1 Gunslinging . | . . . . Exploded . | . . . . Melee . | . . . . Uniques/NPCs Destroyed . | . . . . Combat | -11 -10 -10 -10 -------- Run | Yrd Mat Min Sub Hostile Shots Fired 54 | . 50 . 4 Missed 14 | . 12 . 2 Damage Taken 612 | . 453 10 149 Core 253 | . 155 5 93 Absorbed by Shields . | . . . . Core Remaining (%) 100 | 100 . . . Volleys Fired 52 | 1 48 1 2 Largest 2 | 2 2 1 2 Hottest 110 | 90 110 60 99 Shots Fired 102 | 2 95 1 4 Gun 12 | 2 10 . . Cannon 90 | . 85 1 4 Launcher . | . . . . Special . | . . . . Kinetic 43 | . 41 . 2 Thermal 59 | 2 54 1 2 Explosive . | . . . . Electromagnetic . | . . . . Robot Hit Streak 12 | 2 8 8 12 Robot Miss Streak 6 | . 6 . . Penetration Max . | . . . . Secondary Targets . | . . . . Shots Hit Robots 61 | 2 54 1 4 Core Hits 28 | 1 25 1 1 Critical Kills . | . . . . Critical Parts Destroyed . | . . . . Critical Strikes . | . . . . Melee Attacks . | . . . . Impact . | . . . . Slashing . | . . . . Piercing . | . . . . Sneak Attacks . | . . . . Combat Hostiles . | . . . . Follow-up Attacks . | . . . . Damage Inflicted 1067 | 23 942 18 84 Guns 137 | 23 114 . . Cannons 921 | . 819 18 84 Explosions . | . . . . Melee . | . . . . Ramming 9 | . 9 . . Kinetic 438 | . 389 . 49 Thermal 620 | 23 544 18 35 Explosive . | . . . . Electromagnetic . | . . . . Impact . | . . . . Slashing . | . . . . Piercing . | . . . . Highest Corruption 1 | . 1 1 1 Average Corruption 1 | . 1 1 1 Corruption Purged . | . . . . Corruption Blocked . | . . . . Effects 12 | . 5 6 1 Message Errors 4 | . 2 2 . Matter Fused 2 | . 1 1 . Energy Discharges 2 | . 1 1 . Parts Rejected 1 | . . . 1 Data Loss (minor) 2 | . 1 1 . Data Loss (major) 1 | . . 1 . Overload Shots . | . . . . Overflow Damage 5 | . 5 . . Projectiles 5 | . 5 . . Explosions . | . . . . Melee . | . . . . Knockbacks 6 | . 6 . . Impact . | . . . . Kinetic 6 | . 6 . . Secondary . | . . . . Self-Inflicted Damage . | . . . . Shots . | . . . . Rammed 2 | . 2 . . Targets Rammed 2 | . 2 . . Kicked . | . . . . Crushed . | . . . . Highest Temperature 315 | 30 315 20 . Average Temperature 86 | 17 88 15 . Received Heat Transfer 207 | . 192 . 15 Siege Activations . | . . . . Robots Corrupted . | . . . . Combat Hostiles . | . . . . Parts Fried . | . . . . Impact Corruptions . | . . . . Robots Melted . | . . . . Combat Hostiles . | . . . . Parts Melted 4 | . 2 1 1 Heat Transferred 1346 | 62 1173 37 74 Parts Sabotaged . | . . . . Parts Stolen . | . . . . Parts Stripped . | . . . . Power Chain Reactions . | . . . . Alert | -11 -10 -10 -10 ------- Run | Yrd Mat Min Sub Peak Influence 271 | 5 271 29 . Initial 24 | . 3 24 . Average 74 | 1 112 14 . Maximum Alert Level 1 | . 1 . . Low Security (%) 94 | 100 91 100 . Level 1 5 | . 8 . . Level 2 . | . . . . Level 3 . | . . . . Level 4 . | . . . . Level 5 . | . . . . High Security . | . . . . Max Security . | . . . . Squads Dispatched 5 | . 5 . . Investigation 3 | . 3 . . Extermination . | . . . . Reinforcement 2 | . 2 . . Assault . | . . . . Garrison . | . . . . Intercept . | . . . . Searches Triggered . | . . . . Construction Impeded . | . . . . Haulers Reinforced . | . . . . Active Scanning Responses . | . . . . Cargo Convoy Interrupts . | . . . . Stealth | -11 -10 -10 -10 --------- Run | Yrd Mat Min Sub Distress Signals 8 | . 8 . . Communications Jammed . | . . . . Distress Signals . | . . . . Times Spotted 37 | . 32 . 5 Peak Tracking Total 4 | . 3 . 4 Tactical Retreats 1 | . 1 . . Traps | -11 -10 -10 -10 ------- Run | Yrd Mat Min Sub Traps Triggered 4 | . 2 . 2 Indirectly . | . . . . Trap Hack Attempts . | . . . . Triggered . | . . . . Disarmed . | . . . . Reprogrammed . | . . . . Reused . | . . . . Traps Extracted . | . . . . Installed . | . . . . Triggered . | . . . . Machines | -11 -10 -10 -10 ---------- Run | Yrd Mat Min Sub Machines Disabled . | . . . . Max in Single Turn . | . . . . Machines Repaired . | . . . . Machines Dismantled . | . . . . Machines Sabotaged . | . . . . Overloaded Fab Kills . | . . . . Hacking | -11 -10 -10 -10 --------- Run | Yrd Mat Min Sub Machines Accessed 10 | . 8 2 . Terminals 7 | . 6 1 . Fabricators . | . . . . Repair Stations . | . . . . Recycling Units 2 | . 2 . . Scanalyzers . | . . . . Garrison Access . | . . . . Total Hacks 25 | . 23 2 . Successful 12 | . 10 2 . Failed 13 | . 13 . . Catastrophic 1 | . 1 . . Database Lockouts . | . . . . Manual 18 | . 18 . . Terminals 22 | . 21 1 . Fabricators . | . . . . Repair Stations . | . . . . Recycling Units 2 | . 2 . . Scanalyzers . | . . . . Garrison Access . | . . . . Terminal Hacks 6 | . 4 2 . Robot Analysis 1 | . 1 . . Prototype ID Bank 1 | . 1 . . Open Door 1 | . . 1 . Level Access Points 1 | . . 1 . Unreport Threat 1 | . 1 . . Hauler Manifests 1 | . 1 . . Fabricator Hacks . | . . . . Repair Station Hacks . | . . . . Recycling Unit Hacks . | . . . . Scanalyzer . | . . . . Garrison Access Hacks . | . . . . Unauthorized Hacks 6 | . 6 . . Terminals 4 | . 4 . . Botnet 3 | . 3 . . Operators 1 | . 1 . . Fabricators . | . . . . Repair Stations . | . . . . Recycling Units 2 | . 2 . . Tunnel 2 | . 2 . . Scanalyzers . | . . . . Garrison Access . | . . . . Data Cores Recovered . | . . . . Used . | . . . . Hacking Detections 6 | . 6 . . Full Trace Events 1 | . 1 . . Feedback Events . | . . . . Feedback Blocked . | . . . . Robot Schematics Acquired . | . . . . Robots Built . | . . . . Authchips . | . . . . Time . | . . . . Total Robot Build Rating . | . . . . Part Schematics Acquired . | . . . . Parts Built . | . . . . Authchips . | . . . . Time . | . . . . Total Part Build Rating . | . . . . Parts Repaired . | . . . . Time . | . . . . Parts Recycled . | . . . . Recycled Matter . | . . . . Retrieved Matter . | . . . . Retrieved Components . | . . . . Parts Scanalyzed . | . . . . Part Schematics Acquired . | . . . . Parts Damaged . | . . . . Bothacking | -11 -10 -10 -10 ------------ Run | Yrd Mat Min Sub Used RIF Installer . | . . . . Robots Hacked . | . . . . Non-combat . | . . . . Combat . | . . . . Robot Hacks Applied . | . . . . Relay Couplers Released . | . . . . Fabnet Peak Effective % . | . . . . Robots Rewired . | . . . . Allies Hacked . | . . . . Hacks Repelled . | . . . . Allies | -11 -10 -10 -10 -------- Run | Yrd Mat Min Sub Total Allies 3 | . . 3 . Largest Group 3 | . . 3 3 Highest-Rated Group 40 | . . 40 40 Highest-Rated Ally 16 | . . 16 16 Total Orders . | . . . . Ally Attacks 17 | . . . 17 Total Damage 99 | . . . 99 Kills 1 | . . . 1 Allies Corrupted . | . . . . Allies Melted . | . . . . Intel | -11 -10 -10 -10 ------- Run | Yrd Mat Min Sub Robot Analysis Total 1 | . 1 . . Derelict Logs Recovered 1 | . . 1 . Drone Launches . | . . . . Drone Recoveries . | . . . . Exploration | -11 -10 -10 -10 ------------- Run | Yrd Mat Min Sub Turns Passed 2441 | 77 1367 771 226 Spaces Moved 1512 | 61 749 529 173 Core 2 | 2 . . . Treads 108 | 1 107 . . Legs . | . . . . Wheels 1402 | 58 642 529 173 Hover . | . . . . Flight . | . . . . Fastest Speed 50 | 50 95 125 110 Average Speed 128 | 89 136 125 118 Slowest Speed 240 | 160 240 125 125 Overloaded Moves . | . . . . Propulsion Burnouts . | . . . . Robots Hopped . | . . . . Cave-ins Triggered . | . . . . Exploration Rate (%) 53 | 5 96 97 15 Regions Visited 3 Branch Regions 2 Pre-discovered Areas 4 | . 2 2 . Known Exits Taken . | . . . . Unknown Exits Taken 3 | 1 1 1 . Scrap Searched 2 | . . 1 1 Spaces Dug . | . . . . Terrain Destroyed . | . . . . Melee . | . . . . Projectile . | . . . . AOE . | . . . . Terrain Rammed . | . . . . Walls Destroyed . | . . . . Machines Disabled . | . . . . Actions | -11 -10 -10 -10 --------- Run | Yrd Mat Min Sub Total 1906 | 77 1000 638 191 Wait 288 | 5 168 107 8 Move 1509 | 60 748 528 173 Hop . | . . . . Pick Up 24 | 4 16 1 3 Fast Attach 9 | 7 2 . . Attach 1 | . 1 . . Detach 1 | . 1 . . Swap 5 | . 4 . 1 Drop 15 | . 10 1 4 Fire 52 | 1 48 1 2 Melee . | . . . . Ram . | . . . . Kick . | . . . . Crush 2 | . 2 . . Escape Stasis . | . . . . Rewire . | . . . . Trap . | . . . . Miscellaneous . | . . . . Route ------- -11/Scrapyard -10/Materials (discovered 4 exits: *Mat x3 / *Min) -10/Mines (discovered 3 exits: *Mat x2 / [*Sub]) -10/Subcaves History --------- Turn | Location | Event 13 | -11/Scrapyard | Discovered new exit (range 13) 78 | -11/Scrapyard | Entered Materials 198 | -10/Materials | Discovered new exit (range 10) 313 | -10/Materials | Build established: Mutant 681 | -10/Materials | Discovered new exit (range 9) 986 | -10/Materials | Discovered new exit (range 15) 1063 | -10/Materials | Discovered new exit (range 16) 1133 | -10/Materials | Core integrity fell below 50% 1445 | -10/Materials | Entered Mines 1458 | -10/Mines | Learned location of Zion (-6) 1714 | -10/Mines | Assisted by bots powering up and referring to "LRC-V3" 1722 | -10/Mines | Discovered new exit (range 11) 1896 | -10/Mines | Learned location of Storage (-7) 1987 | -10/Mines | Met a Derelict who couldn't figure out how to use a Trap Extractor 2068 | -10/Mines | Discovered new exit (range 3) 2076 | -10/Mines | Identified exit to Materials 2212 | -10/Mines | Discovered new exit (range 3) 2216 | -10/Mines | Entered Subcaves 2216 | -10/Subcaves | Accompanied by 3 allies 2247 | -10/Subcaves | Shifting Twisted Machinery released Battle Cannon 2249 | -10/Subcaves | Shifting Twisted Machinery released Sub. Laser 2410 | -10/Subcaves | Core integrity fell below 20% 2442 | -10/Subcaves | Destroyed by Autobeam Turret with Autobeam Last Messages --------------- Shield. 02360_ S-10 Pest destroyed. 02361_ Acquired 5 matter. 02361_ S-10 Pest destroyed. 02363_ Disposable Heat Sink melted. 02363_ HX-510(R) destroyed. 02364_ Acquired 5 matter. 02368_ Lgt. Assault Rifle fries itself beyond repair. 02374_ Lgt. Ion Engine fries itself beyond repair. 02378_ Dropped Wheel. 02378_ Acquired Sub. Monowheel. 02404_ Triggered Piercing Trap. 02404_ Spikes shoot up from the floor. 02404_ Critical hit (Impale). 02404_ Seismic Detector destroyed. 02409_ Triggered Shrapnel Trap. 02409_ An expanding cloud of shrapnel blasts out in all directions. 02409_ Trooper 1a destroyed. [Achievement: Overachiever] Map ----- +----------------------------------------------------+ | ??????????????????????????????????????????## | | ??????????????????????????????????????????# | | ??????????????????????????????????????????### | | ???????????????????????????????????????????### | | ???????????????????????????????????????????# | | ???????????????????????????????????????????## | | ?????????????????????????????????????###????# ## | | ????????????????????????????????????## ###?## ### | | ????????????????????????????????????# ### #? | | ?????????????????????????????????????#""""" ]### | | ?????????????????????????????????????#"""" """" | | ?????????????????????????????????????# ["""" | | ??????????????????????????????? ????# ## | | ???????????????? #????????? ????# ## ### | | ????????????????? ##??????## ????#### ### # | | ?????????????????? #?????# ???###?# ## ## | | ?????????????????? ##??? %#?##"### #### | | ??????????????????? ### ## "" ### | | ???????????????????? """"### | | ????????????????????? ### % "#### | | ????????????????????? ???## *%["#" | | ????????????????????? #????#% ! " | | ??????????????????????# #??### % * | | ???????????????????????# ####; # # | | ???????????????????????# ####### | | ???????????????????????# @ #?????? | | ???????????????????????# % ##?????? | | ??????????????????????## &%! #??????? | | ??????????????????????# &% ######??????? | | ??????????????????????### = ####??????###### | | ????????????????????????## #??##???### | | ?????????????????????????## g ### # ### | | ??????????????????????????# # # | | ??????????????????????????# # #### #^ | | ?????????????????????????## #??#?## | | ?????????????????????????# ###### # | | ?????????????????????????# ## ## | | ?????????????????????????# ## | | ?????????????????????????# ### | | ?????????????????????????####### ###### | | ???????????????????????????????## ## ##### | | ????????????????????????????????## #### # | | ?????????????????????????????????###??## | | ???????????????????????????????????????###### | | ????????????????????????????????????????????## | | ?????????????????????????????????????????????# | | ????????????????????????????????????????????# # | | ???????????????????????????????????????????# ### | | ???????????????????????????????????????????# ???# | | ???????????????????????????????????????????# ???? | +----------------------------------------------------+ Best States ------------- Heat Dissipation 25 Energy Generation 10 Energy Capacity 250 Matter Stores 300 Matter Capacity 300 Sight Range 16 Terrain Scan Density 10 Evasion (%) 44 Recoil Reduction 1 Item Schematics ----------------- None Robot Schematics ------------------ None Fabricated ------------ Nothing Alien Tech Used ----------------- None Achievements -------------- Overachiever Quantum Hacking Challenges ------------ None Game ------ Seed MetaImprinterDetonator Manual? 0 Play Time 00:17:38 Cumulative 95.1 hours Start 2024.05.13 @ 15:35:50 End 2024.05.13 @ 15:52:26 Sessions 1 Manual Loads 0 Difficulty Rogue Special Mode None Game No. 112 Rogue 112 Adventurer 0 Explorer 0 Win Type - Total 13 Types 12/0/1/0/0/0/0/0/0 Lore% 55 Gallery% 50 Achievement% 50 Wizard Run 0 Options --------- Layout 0 ASCII 0 Keyboard 1 Movement Vi Keybinds 0 Fullscreen 2 Font 16/SmallcapsGlow Map View 64x51 Zoom Use 0% Tactical HUD 1 Map Filters NONE Filters NONE Steam X RUN: 00cc4003-a280-49ab-bffd-ec5b31d8e72d